Workbook

Sheet Bid Summary
B2: Bid Evaluation for:
B3: =TODAY() -> 2011-07-05 | C3: By:
B4: Bidder | D4: Price Rank | E4: Overall Rank
B5: ='Bid Worksheet'!C18 -> Bidder 1 | D5: =RANK -> 2 | E5: ='Bid Worksheet'!D35 -> 3
B6: ='Bid Worksheet'!E18 -> Bidder 2 | D6: ='Bid Worksheet'!E21 -> 3 | E6: ='Bid Worksheet'!F35 -> 4
B7: ='Bid Worksheet'!G18 -> Bidder 3 | D7: ='Bid Worksheet'!G21 -> 1 | E7: ='Bid Worksheet'!H35 -> 1
B8: ='Bid Worksheet'!I18 -> Bidder 4 | D8: ='Bid Worksheet'!I21 -> 4 | E8: ='Bid Worksheet'!J35 -> 2
B9: ='Bid Worksheet'!K18 -> Bidder 5 | D9: ='Bid Worksheet'!K21 ->  | E9: ='Bid Worksheet'!L35 -> 0
B10: ='Bid Worksheet'!M18 -> Bidder 6 | D10: ='Bid Worksheet'!M21 ->  | E10: ='Bid Worksheet'!N35 -> 0
A35: Password = Vikings

Sheet Bid Worksheet
A2: Instructions: Complete YELLOW cells
A3: 1 | B3: Determine importance of Price in overall bid and put as % in cell O:21
A4: 2 | B4: Bid Criteria should match what is in RFP
A5: 3 | B5: Determine importance of each non price criteria in relation to rank , % of total bid will auto calculate
A6: 4 | B6: Bid Price - prices should reflect the whole life cost of the purchase where possible. In all cases the prices entered in the template must represent a ‘like for like’ comparison between bidders.
A7: 5 | B7: Use the following guide when ranking quality and technical criteria
B8: Scoring Rationale: | C8: 0= no submission/submission not relevant
C9: 1= submission partially relevant but poor
C10: 2= submission partially relevant and acceptable
C11: 3= submission completely relevant and acceptable
C12: 4= submission completely relevant and good
C13: 5= submission completely relevant and exceptional
A14: 6 | B14: For more than 4 bidders edit formula in D:35 to include the addional array and copy paste across all bidders.
B18: Cost | C18: Bidder 1 | E18: Bidder 2 | G18: Bidder 3 | I18: Bidder 4 | K18: Bidder 5 | M18: Bidder 6 | O18: Lowest Cost
A19: C-1 | B19: Bid Price | C19: 115 | E19: 120 | G19: 110 | I19: 122 | O19: =SMALL(C19:M19,1) -> 110
B20: % Variance | C20: =100%-($O$19/C$19) -> 4.35% | E20: =100%-($O$19/E$19) -> 8.33% | G20: =100%-($O$19/G$19) -> 0.00% | I20: =100%-($O$19/I$19) -> 9.84% | K20: =100%-($O$19/K$19) ->  | M20: =100%-($O$19/M$19) ->  | O20: Weight as % of total
B21: Rank by Price | C21: =RANK(C$19,$C$19:$M$19,1) -> 2 | E21: =RANK(E$19,$C$19:$M$19,1) -> 3 | G21: =RANK(G$19,$C$19:$M$19,1) -> 1 | I21: =RANK(I$19,$C$19:$M$19,1) -> 4 | K21: =RANK(K$19,$C$19:$M$19,1) ->  | M21: =RANK(M$19,$C$19:$M$19,1) ->  | O21: 50%
B22: Quality and Technical | O22: Weight (% of importance) does not have to =100% | P22: MAX
A23: C-2 | B23: Spec 1 | C23: 5 | D23: =C23*$O23 -> 5.0 | E23: 5 | F23: =E23*$O23 -> 5 | G23: 5 | H23: =G23*$O23 -> 5 | I23: 5 | J23: =I23*$O23 -> 5 | L23: =K23*$O23 -> 0 | N23: =M23*$O23 -> 0 | O23: 100% | P23: =5*O23 -> 5
A24: C-3 | B24: Spec 2 | C24: 4 | D24: 4.0 | E24: 4 | F24: 4 | G24: 4 | H24: =G24*$O24 -> 4 | I24: 5 | J24: =I24*$O24 -> 5 | L24: =K24*$O24 -> 0 | N24: =M24*$O24 -> 0 | O24: 100% | P24: 5
A25: C-4 | B25: Spec 3 | C25: 5 | D25: 3.8 | E25: 5 | F25: 3.75 | G25: 5 | H25: =G25*$O25 -> 3.75 | I25: 5 | J25: =I25*$O25 -> 3.75 | L25: =K25*$O25 -> 0 | N25: =M25*$O25 -> 0 | O25: 75% | P25: 3.75
A26: C-5 | B26: Spec 4 | C26: 4 | D26: 3.0 | E26: 4 | F26: 3 | G26: 4 | H26: =G26*$O26 -> 3 | I26: 5 | J26: =I26*$O26 -> 3.75 | L26: =K26*$O26 -> 0 | N26: =M26*$O26 -> 0 | O26: 75% | P26: 3.75
A27: C-6 | B27: Spec 5 | C27: 5 | D27: 3.8 | E27: 5 | F27: 3.75 | G27: 5 | H27: =G27*$O27 -> 3.75 | I27: 5 | J27: =I27*$O27 -> 3.75 | L27: =K27*$O27 -> 0 | N27: =M27*$O27 -> 0 | O27: 75% | P27: 3.75
A28: C-7 | B28: Spec 6 | C28: 5 | D28: 2.5 | E28: 5 | F28: 2.5 | G28: 5 | H28: =G28*$O28 -> 2.5 | I28: 5 | J28: =I28*$O28 -> 2.5 | L28: =K28*$O28 -> 0 | N28: =M28*$O28 -> 0 | O28: 50% | P28: 2.5
A29: C-8 | B29: Spec 7 | C29: 4 | D29: 2.0 | E29: 4 | F29: 2 | G29: 4 | H29: =G29*$O29 -> 2 | I29: 5 | J29: =I29*$O29 -> 2.5 | L29: =K29*$O29 -> 0 | N29: =M29*$O29 -> 0 | O29: 50% | P29: 2.5
A30: C-9 | B30: Spec 8 | C30: 5 | D30: 0.5 | E30: 5 | F30: 0.5 | G30: 5 | H30: =G30*$O30 -> 0.5 | I30: 5 | J30: =I30*$O30 -> 0.5 | L30: =K30*$O30 -> 0 | N30: =M30*$O30 -> 0 | O30: 10% | P30: 0.5
A31: C-10 | B31: Spec 9 | C31: 5 | D31: 0.5 | E31: 5 | F31: 0.5 | G31: 5 | H31: =G31*$O31 -> 0.5 | I31: 5 | J31: =I31*$O31 -> 0.5 | L31: =K31*$O31 -> 0 | N31: =M31*$O31 -> 0 | O31: 10% | P31: 0.5
B32: Quality and Technical Score | D32: =(SUM(D23:D31)+(SUM(D23:D31)*$P$33))*$O$32 -> 20.6 | F32: =(SUM(F23:F31)+(SUM(F23:F31)*$P$33))*$O$32 -> 20.64220183 | H32: 20.64220183 | J32: 22.5 | L32: 0 | N32: 0 | O32: =100%-$O$21 -> 50% | P32: =SUM(P23:P31) -> 27.25
B33: Price (weighted score) | D33: =$O$33-($O$33*C20) -> 21.5 | F33: =$O$33-($O$33*E20) -> 20.63 | H33: =$O$33-($O$33*G20) -> 22.50 | J33: =$O$33-($O$33*I20) -> 20.29 | L33: =$O$33-($O$33*K20) ->  | N33: =$O$33-($O$33*M20) ->  | O33: =(COUNTIF(B23:B31,">{}")*5)*O21 -> 22.5 | P33: =(45-P32)/P32 -> 65.14%
B34: Overall Weighted Score | D34: =SUM(D32:D33) -> 42.2 | F34: =SUM(F32:F33) -> 41.27 | H34: 43.14 | J34: 42.79
B35: Overall Rank | D35: =RANK(D34,$D34:$J34,) -> 3 | F35: =RANK(F34,$D34:$J34,) -> 4 | H35: =RANK(H34,$D34:$J34,) -> 1 | J35: =RANK(J34,$D34:$J34,) -> 2

Sheet Sheet3
